Workbook

Sheet גיליון1
U4: (SQRT(COS(H14))*COS(300*H14)=-SQRT(ABS(G14))-0.7)
U5: =DEGREES(ACOS((I14-SQRT(ABS(H14))+0.7)/(SQRT(COS(E14)))))/300 -> 0.4
U13: sqrt(cos(x))*cos(300x)+sqrt(abs(x))-0.7)*(4-x*x)^0
E14: =RADIANS(H14) -> -0.1745329252 | H14: -10 | I14: =SQRT(COS(E14))*COS(300*E14)+SQRT(ABS(H14))-0.7 -> 1.966090258 | L14: =(SQRT(COS(E14))*COS(300*E14)+SQRT(ABS(H14))-0.7)*(4-H14*H14)^0 -> 1.966090258
E15: =RADIANS(H15) -> -0.1727875959 | H15: =H14+0.1 -> -9.9 | I15: =SQRT(COS(E15))*COS(300*E15)+SQRT(ABS(H15))-0.7 -> 2.446426545
E16: =RADIANS(H16) -> -0.1710422667 | H16: =H15+0.1 -> -9.8 | I16: =SQRT(COS(E16))*COS(300*E16)+SQRT(ABS(H16))-0.7 -> 2.926833737
E17: =RADIANS(H17) -> -0.1692969374 | H17: -9.7 | I17: =SQRT(COS(E17))*COS(300*E17)+SQRT(ABS(H17))-0.7 -> 3.274294839
E18: =RADIANS(H18) -> -0.1675516082 | H18: -9.6 | I18: =SQRT(COS(E18))*COS(300*E18)+SQRT(ABS(H18))-0.7 -> 3.391360008
E19: =RADIANS(H19) -> -0.1658062789 | H19: -9.5 | I19: =SQRT(COS(E19))*COS(300*E19)+SQRT(ABS(H19))-0.7 -> 3.242273395
E20: =RADIANS(H20) -> -0.1640609497 | H20: -9.4 | I20: =SQRT(COS(E20))*COS(300*E20)+SQRT(ABS(H20))-0.7 -> 2.862573638
E21: =RADIANS(H21) -> -0.1623156204 | H21: -9.3 | I21: =SQRT(COS(E21))*COS(300*E21)+SQRT(ABS(H21))-0.7 -> 2.349590136
E22: =RADIANS(H22) -> -0.1605702912 | H22: =H21+0.1 -> -9.2 | I22: =SQRT(COS(E22))*COS(300*E22)+SQRT(ABS(H22))-0.7 -> 1.836376521
E23: =RADIANS(H23) -> -0.1588249619 | H23: -9.1 | I23: =SQRT(COS(E23))*COS(300*E23)+SQRT(ABS(H23))-0.7 -> 1.456062461
E24: =RADIANS(H24) -> -0.1570796327 | H24: -9 | I24: =SQRT(COS(E24))*COS(300*E24)+SQRT(ABS(H24))-0.7 -> 1.306174894
E25: =RADIANS(H25) -> -0.1553343034 | H25: -8.9 | I25: =SQRT(COS(E25))*COS(300*E25)+SQRT(ABS(H25))-0.7 -> 1.422490693
E26: =RADIANS(H26) -> -0.1535889742 | H26: -8.8 | I26: =SQRT(COS(E26))*COS(300*E26)+SQRT(ABS(H26))-0.7 -> 1.769431012
E27: =RADIANS(H27) -> -0.1518436449 | H27: -8.7 | I27: =SQRT(COS(E27))*COS(300*E27)+SQRT(ABS(H27))-0.7 -> 2.249576241
E28: =RADIANS(H28) -> -0.1500983157 | H28: -8.6 | I28: =SQRT(COS(E28))*COS(300*E28)+SQRT(ABS(H28))-0.7 -> 2.729756809
E29: =RADIANS(H29) -> -0.1483529864 | H29: -8.5 | I29: =SQRT(COS(E29))*COS(300*E29)+SQRT(ABS(H29))-0.7 -> 3.076731947
E30: =RADIANS(H30) -> -0.1466076572 | H30: -8.4 | I30: =SQRT(COS(E30))*COS(300*E30)+SQRT(ABS(H30))-0.7 -> 3.192897053
E31: =RADIANS(H31) -> -0.1448623279 | H31: -8.3 | I31: =SQRT(COS(E31))*COS(300*E31)+SQRT(ABS(H31))-0.7 -> 3.042450057
E32: =RADIANS(H32) -> -0.1431169987 | H32: -8.2 | I32: =SQRT(COS(E32))*COS(300*E32)+SQRT(ABS(H32))-0.7 -> 2.661001704
E33: =RADIANS(H33) -> -0.1413716694 | H33: -8.1 | I33: =SQRT(COS(E33))*COS(300*E33)+SQRT(ABS(H33))-0.7 -> 2.146049894
E34: =RADIANS(H34) -> -0.1396263402 | H34: -8 | I34: =SQRT(COS(E34))*COS(300*E34)+SQRT(ABS(H34))-0.7 -> 1.630866056
E35: =RADIANS(H35) -> -0.1378810109 | H35: -7.9 | I35: =SQRT(COS(E35))*COS(300*E35)+SQRT(ABS(H35))-0.7 -> 1.248787781
E36: =RADIANS(H36) -> -0.1361356817 | H36: -7.8 | I36: =SQRT(COS(E36))*COS(300*E36)+SQRT(ABS(H36))-0.7 -> 1.097484839
E37: =RADIANS(H37) -> -0.1343903524 | H37: -7.7 | I37: =SQRT(COS(E37))*COS(300*E37)+SQRT(ABS(H37))-0.7 -> 1.212775212
E38: =RADIANS(H38) -> -0.1326450232 | H38: -7.6 | I38: =SQRT(COS(E38))*COS(300*E38)+SQRT(ABS(H38))-0.7 -> 1.55901071
E39: =RADIANS(H39) -> -0.1308996939 | H39: -7.5 | I39: =SQRT(COS(E39))*COS(300*E39)+SQRT(ABS(H39))-0.7 -> 2.038612788
E40: =RADIANS(H40) -> -0.1291543646 | H40: -7.4 | I40: =SQRT(COS(E40))*COS(300*E40)+SQRT(ABS(H40))-0.7 -> 2.518207539
E41: =RADIANS(H41) -> -0.1274090354 | H41: -7.3 | I41: =SQRT(COS(E41))*COS(300*E41)+SQRT(ABS(H41))-0.7 -> 2.86435967
E42: =RADIANS(H42) -> -0.1256637061 | H42: -7.2 | I42: =SQRT(COS(E42))*COS(300*E42)+SQRT(ABS(H42))-0.7 -> 2.979331121
E43: =RADIANS(H43) -> -0.1239183769 | H43: -7.1 | I43: =SQRT(COS(E43))*COS(300*E43)+SQRT(ABS(H43))-0.7 -> 2.827281165
E44: =RADIANS(H44) -> -0.1221730476 | H44: -7 | I44: =SQRT(COS(E44))*COS(300*E44)+SQRT(ABS(H44))-0.7 -> 2.443884363
E45: =RADIANS(H45) -> -0.1204277184 | H45: -6.9 | I45: =SQRT(COS(E45))*COS(300*E45)+SQRT(ABS(H45))-0.7 -> 1.926785107
E46: =RADIANS(H46) -> -0.1186823891 | H46: -6.8 | I46: =SQRT(COS(E46))*COS(300*E46)+SQRT(ABS(H46))-0.7 -> 1.409442689
E47: =RADIANS(H47) -> -0.1169370599 | H47: -6.7 | I47: =SQRT(COS(E47))*COS(300*E47)+SQRT(ABS(H47))-0.7 -> 1.025372679
E48: =RADIANS(H48) -> -0.1151917306 | H48: =H47+0.1 -> -6.6 | I48: =SQRT(COS(E48))*COS(300*E48)+SQRT(ABS(H48))-0.7 -> 0.8723656412
E49: =RADIANS(H49) -> -0.1134464014 | H49: =H48+0.1 -> -6.5 | I49: =SQRT(COS(E49))*COS(300*E49)+SQRT(ABS(H49))-0.7 -> 0.9862723087
E50: =RADIANS(H50) -> -0.1117010721 | H50: -6.4 | I50: =SQRT(COS(E50))*COS(300*E50)+SQRT(ABS(H50))-0.7 -> 1.331382583
E51: =RADIANS(H51) -> -0.1099557429 | H51: -6.3 | I51: =SQRT(COS(E51))*COS(300*E51)+SQRT(ABS(H51))-0.7 -> 1.80998008
E52: =RADIANS(H52) -> -0.1082104136 | H52: -6.2 | I52: =SQRT(COS(E52))*COS(300*E52)+SQRT(ABS(H52))-0.7 -> 2.288515516
E53: =RADIANS(H53) -> -0.1064650844 | H53: -6.1 | I53: =SQRT(COS(E53))*COS(300*E53)+SQRT(ABS(H53))-0.7 -> 2.633387988
E54: =RADIANS(H54) -> -0.1047197551 | H54: -6 | I54: =SQRT(COS(E54))*COS(300*E54)+SQRT(ABS(H54))-0.7 -> 2.746746929
E55: =RADIANS(H55) -> -0.1029744259 | H55: -5.9 | I55: =SQRT(COS(E55))*COS(300*E55)+SQRT(ABS(H55))-0.7 -> 2.592720171
E56: =RADIANS(H56) -> -0.1012290966 | H56: -5.8 | I56: =SQRT(COS(E56))*COS(300*E56)+SQRT(ABS(H56))-0.7 -> 2.207037451
E57: =RADIANS(H57) -> -0.09948376736 | H57: -5.7 | I57: =SQRT(COS(E57))*COS(300*E57)+SQRT(ABS(H57))-0.7 -> 1.687467277
E58: =RADIANS(H58) -> -0.09773843811 | H58: -5.6 | I58: =SQRT(COS(E58))*COS(300*E58)+SQRT(ABS(H58))-0.7 -> 1.16762649
E59: =RADIANS(H59) -> -0.09599310886 | H59: -5.5 | I59: =SQRT(COS(E59))*COS(300*E59)+SQRT(ABS(H59))-0.7 -> 0.7811782804
E60: =RADIANS(H60) -> -0.09424777961 | H60: -5.4 | I60: =SQRT(COS(E60))*COS(300*E60)+SQRT(ABS(H60))-0.7 -> 0.6260114929
E61: =RADIANS(H61) -> -0.09250245036 | H61: -5.3 | I61: =SQRT(COS(E61))*COS(300*E61)+SQRT(ABS(H61))-0.7 -> 0.7380007258
E62: =RADIANS(H62) -> -0.0907571211 | H62: -5.2 | I62: =SQRT(COS(E62))*COS(300*E62)+SQRT(ABS(H62))-0.7 -> 1.081380811
E63: =RADIANS(H63) -> -0.08901179185 | H63: -5.1 | I63: =SQRT(COS(E63))*COS(300*E63)+SQRT(ABS(H63))-0.7 -> 1.558317958
E64: =RADIANS(H64) -> -0.0872664626 | H64: -5 | I64: =SQRT(COS(E64))*COS(300*E64)+SQRT(ABS(H64))-0.7 -> 2.035115745
E65: =RADIANS(H65) -> -0.08552113335 | H65: -4.9 | I65: =SQRT(COS(E65))*COS(300*E65)+SQRT(ABS(H65))-0.7 -> 2.378035784
E66: =RADIANS(H66) -> -0.0837758041 | H66: -4.8 | I66: =SQRT(COS(E66))*COS(300*E66)+SQRT(ABS(H66))-0.7 -> 2.489135119
E67: =RADIANS(H67) -> -0.08203047484 | H67: -4.7 | I67: =SQRT(COS(E67))*COS(300*E67)+SQRT(ABS(H67))-0.7 -> 2.332516462
E68: =RADIANS(H68) -> -0.08028514559 | H68: -4.6 | I68: =SQRT(COS(E68))*COS(300*E68)+SQRT(ABS(H68))-0.7 -> 1.943955129
E69: =RADIANS(H69) -> -0.07853981634 | H69: -4.5 | I69: =SQRT(COS(E69))*COS(300*E69)+SQRT(ABS(H69))-0.7 -> 1.421320344
E70: =RADIANS(H70) -> -0.07679448709 | H70: -4.4 | I70: =SQRT(COS(E70))*COS(300*E70)+SQRT(ABS(H70))-0.7 -> 0.898355052
E71: =RADIANS(H71) -> -0.07504915784 | H71: -4.3 | I71: =SQRT(COS(E71))*COS(300*E71)+SQRT(ABS(H71))-0.7 -> 0.5088384634
E72: =RADIANS(H72) -> -0.07330382858 | H72: -4.2 | I72: =SQRT(COS(E72))*COS(300*E72)+SQRT(ABS(H72))-0.7 -> 0.3507338173
E73: =RADIANS(H73) -> -0.07155849933 | H73: -4.1 | I73: =SQRT(COS(E73))*COS(300*E73)+SQRT(ABS(H73))-0.7 -> 0.4599291528
E74: =RADIANS(H74) -> -0.06981317008 | H74: -4 | I74: =SQRT(COS(E74))*COS(300*E74)+SQRT(ABS(H74))-0.7 -> 0.8006093588
E75: =RADIANS(H75) -> -0.06806784083 | H75: -3.9 | I75: =SQRT(COS(E75))*COS(300*E75)+SQRT(ABS(H75))-0.7 -> 1.274841766
E76: =RADIANS(H76) -> -0.06632251158 | H76: -3.8 | I76: =SQRT(COS(E76))*COS(300*E76)+SQRT(ABS(H76))-0.7 -> 1.748808934
E77: =RADIANS(H77) -> -0.06457718232 | H77: -3.7 | I77: =SQRT(COS(E77))*COS(300*E77)+SQRT(ABS(H77))-0.7 -> 2.088660775
E78: =RADIANS(H78) -> -0.06283185307 | H78: -3.6 | I78: =SQRT(COS(E78))*COS(300*E78)+SQRT(ABS(H78))-0.7 -> 2.196379473
E79: =RADIANS(H79) -> -0.06108652382 | H79: -3.5 | I79: =SQRT(COS(E79))*COS(300*E79)+SQRT(ABS(H79))-0.7 -> 2.036046064
E80: =RADIANS(H80) -> -0.05934119457 | H80: -3.4 | I80: =SQRT(COS(E80))*COS(300*E80)+SQRT(ABS(H80))-0.7 -> 1.643468655
E81: =RADIANS(H81) -> -0.05759586532 | H81: =H80+0.1 -> -3.3 | I81: =SQRT(COS(E81))*COS(300*E81)+SQRT(ABS(H81))-0.7 -> 1.116590212
E82: =RADIANS(H82) -> -0.05585053606 | H82: =H81+0.1 -> -3.2 | I82: =SQRT(COS(E82))*COS(300*E82)+SQRT(ABS(H82))-0.7 -> 0.589244343
E83: =RADIANS(H83) -> -0.05410520681 | H83: -3.1 | I83: =SQRT(COS(E83))*COS(300*E83)+SQRT(ABS(H83))-0.7 -> 0.1952901547
E84: =RADIANS(H84) -> -0.05235987756 | H84: -3 | I84: =SQRT(COS(E84))*COS(300*E84)+SQRT(ABS(H84))-0.7 -> 0.03273627512
E85: =RADIANS(H85) -> -0.05061454831 | H85: -2.9 | I85: =SQRT(COS(E85))*COS(300*E85)+SQRT(ABS(H85))-0.7 -> 0.1374679451
E86: =RADIANS(H86) -> -0.04886921906 | H86: -2.8 | I86: =SQRT(COS(E86))*COS(300*E86)+SQRT(ABS(H86))-0.7 -> 0.4736186079
E87: =RADIANS(H87) -> -0.0471238898 | H87: -2.7 | I87: =SQRT(COS(E87))*COS(300*E87)+SQRT(ABS(H87))-0.7 -> 0.9431676725
E88: =RADIANS(H88) -> -0.04537856055 | H88: -2.6 | I88: =SQRT(COS(E88))*COS(300*E88)+SQRT(ABS(H88))-0.7 -> 1.412194126
E89: =RADIANS(H89) -> -0.0436332313 | H89: -2.5 | I89: =SQRT(COS(E89))*COS(300*E89)+SQRT(ABS(H89))-0.7 -> 1.746752004
E90: =RADIANS(H90) -> -0.04188790205 | H90: -2.4 | I90: =SQRT(COS(E90))*COS(300*E90)+SQRT(ABS(H90))-0.7 -> 1.848754657
E91: =RADIANS(H91) -> -0.0401425728 | H91: -2.3 | I91: =SQRT(COS(E91))*COS(300*E91)+SQRT(ABS(H91))-0.7 -> 1.682251585
E92: =RADIANS(H92) -> -0.03839724354 | H92: -2.2 | I92: =SQRT(COS(E92))*COS(300*E92)+SQRT(ABS(H92))-0.7 -> 1.283055393
E93: =RADIANS(H93) -> -0.03665191429 | H93: -2.1 | I93: =SQRT(COS(E93))*COS(300*E93)+SQRT(ABS(H93))-0.7 -> 0.7491376746
E94: =RADIANS(H94) -> -0.03490658504 | H94: -2 | I94: =SQRT(COS(E94))*COS(300*E94)+SQRT(ABS(H94))-0.7 -> 0.2143658788
E95: =RADIANS(H95) -> -0.03316125579 | H95: -1.9 | I95: =SQRT(COS(E95))*COS(300*E95)+SQRT(ABS(H95))-0.7 -> -0.1873824324
E96: =RADIANS(H96) -> -0.03141592654 | H96: -1.8 | I96: =SQRT(COS(E96))*COS(300*E96)+SQRT(ABS(H96))-0.7 -> -0.3581124632
E97: =RADIANS(H97) -> -0.02967059728 | H97: -1.7 | I97: =SQRT(COS(E97))*COS(300*E97)+SQRT(ABS(H97))-0.7 -> -0.2619943156
E98: =RADIANS(H98) -> -0.02792526803 | H98: -1.6 | I98: =SQRT(COS(E98))*COS(300*E98)+SQRT(ABS(H98))-0.7 -> 0.06500854481
E99: =RADIANS(H99) -> -0.02617993878 | H99: -1.5 | I99: =SQRT(COS(E99))*COS(300*E99)+SQRT(ABS(H99))-0.7 -> 0.5247448714
E100: =RADIANS(H100) -> -0.02443460953 | H100: -1.4 | I100: =SQRT(COS(E100))*COS(300*E100)+SQRT(ABS(H100))-0.7 -> 0.9831413235
E101: =RADIANS(H101) -> -0.02268928028 | H101: -1.3 | I101: =SQRT(COS(E101))*COS(300*E101)+SQRT(ABS(H101))-0.7 -> 1.306089368
E102: =RADIANS(H102) -> -0.02094395102 | H102: -1.2 | I102: =SQRT(COS(E102))*COS(300*E102)+SQRT(ABS(H102))-0.7 -> 1.395335451
E103: =RADIANS(H103) -> -0.01919862177 | H103: -1.1 | I103: =SQRT(COS(E103))*COS(300*E103)+SQRT(ABS(H103))-0.7 -> 1.214754449
E104: =RADIANS(H104) -> -0.01745329252 | H104: -1 | I104: =SQRT(COS(E104))*COS(300*E104)+SQRT(ABS(H104))-0.7 -> 0.7999619223
E105: =RADIANS(H105) -> -0.01570796327 | H105: -0.9 | I105: =SQRT(COS(E105))*COS(300*E105)+SQRT(ABS(H105))-0.7 -> 0.2486832981
E106: =RADIANS(H106) -> -0.01396263402 | H106: -0.8 | I106: =SQRT(COS(E106))*COS(300*E106)+SQRT(ABS(H106))-0.7 -> -0.3055484394
E107: =RADIANS(H107) -> -0.01221730476 | H107: -0.7 | I107: =SQRT(COS(E107))*COS(300*E107)+SQRT(ABS(H107))-0.7 -> -0.7293330608
E108: =RADIANS(H108) -> -0.01047197551 | H108: -0.6 | I108: =SQRT(COS(E108))*COS(300*E108)+SQRT(ABS(H108))-0.7 -> -0.9253759151
E109: =RADIANS(H109) -> -0.00872664626 | H109: -0.5 | I109: =SQRT(COS(E109))*COS(300*E109)+SQRT(ABS(H109))-0.7 -> -0.8589021346
E110: =RADIANS(H110) -> -0.006981317008 | H110: -0.4 | I110: =SQRT(COS(E110))*COS(300*E110)+SQRT(ABS(H110))-0.7 -> -0.5675383756
E111: =RADIANS(H111) -> -0.005235987756 | H111: -0.3 | I111: =SQRT(COS(E111))*COS(300*E111)+SQRT(ABS(H111))-0.7 -> -0.1522774425
E112: =RADIANS(H112) -> -0.003490658504 | H112: -0.2 | I112: =SQRT(COS(E112))*COS(300*E112)+SQRT(ABS(H112))-0.7 -> 0.2472120724
E113: =RADIANS(H113) -> -0.001745329252 | H113: -0.1 | I113: =SQRT(COS(E113))*COS(300*E113)+SQRT(ABS(H113))-0.7 -> 0.4822525103
E114: =RADIANS(H114) -> -3.27956524e-16 | H114: =H113+0.1 -> -1.879052469e-14 | I114: =SQRT(COS(E114))*COS(300*E114)+SQRT(ABS(H114))-0.7 -> 0.3000001371
E115: =RADIANS(H115) -> 0.001745329252 | H115: =H114+0.1 -> 0.1 | I115: =SQRT(COS(E115))*COS(300*E115)+SQRT(ABS(H115))-0.7 -> 0.4822525103
E116: =RADIANS(H116) -> 0.003490658504 | H116: 0.2 | I116: =SQRT(COS(E116))*COS(300*E116)+SQRT(ABS(H116))-0.7 -> 0.2472120724
E117: =RADIANS(H117) -> 0.005235987756 | H117: 0.3 | I117: =SQRT(COS(E117))*COS(300*E117)+SQRT(ABS(H117))-0.7 -> -0.1522774425
E118: =RADIANS(H118) -> 0.006981317008 | H118: 0.4 | I118: =SQRT(COS(E118))*COS(300*E118)+SQRT(ABS(H118))-0.7 -> -0.5675383756
E119: =RADIANS(H119) -> 0.00872664626 | H119: 0.5 | I119: =SQRT(COS(E119))*COS(300*E119)+SQRT(ABS(H119))-0.7 -> -0.8589021346
E120: =RADIANS(H120) -> 0.01047197551 | H120: 0.6 | I120: =SQRT(COS(E120))*COS(300*E120)+SQRT(ABS(H120))-0.7 -> -0.9253759151
E121: =RADIANS(H121) -> 0.01221730476 | H121: 0.7 | I121: =SQRT(COS(E121))*COS(300*E121)+SQRT(ABS(H121))-0.7 -> -0.7293330608
E122: =RADIANS(H122) -> 0.01396263402 | H122: 0.8 | I122: =SQRT(COS(E122))*COS(300*E122)+SQRT(ABS(H122))-0.7 -> -0.3055484394
E123: =RADIANS(H123) -> 0.01570796327 | H123: 0.9 | I123: =SQRT(COS(E123))*COS(300*E123)+SQRT(ABS(H123))-0.7 -> 0.2486832981
E124: =RADIANS(H124) -> 0.01745329252 | H124: 1 | I124: =SQRT(COS(E124))*COS(300*E124)+SQRT(ABS(H124))-0.7 -> 0.7999619223
E125: =RADIANS(H125) -> 0.01919862177 | H125: 1.1 | I125: =SQRT(COS(E125))*COS(300*E125)+SQRT(ABS(H125))-0.7 -> 1.214754449
E126: =RADIANS(H126) -> 0.02094395102 | H126: 1.2 | I126: =SQRT(COS(E126))*COS(300*E126)+SQRT(ABS(H126))-0.7 -> 1.395335451
E127: =RADIANS(H127) -> 0.02268928028 | H127: 1.3 | I127: =SQRT(COS(E127))*COS(300*E127)+SQRT(ABS(H127))-0.7 -> 1.306089368
E128: =RADIANS(H128) -> 0.02443460953 | H128: 1.4 | I128: =SQRT(COS(E128))*COS(300*E128)+SQRT(ABS(H128))-0.7 -> 0.9831413235
E129: =RADIANS(H129) -> 0.02617993878 | H129: 1.5 | I129: =SQRT(COS(E129))*COS(300*E129)+SQRT(ABS(H129))-0.7 -> 0.5247448714
E130: =RADIANS(H130) -> 0.02792526803 | H130: 1.6 | I130: =SQRT(COS(E130))*COS(300*E130)+SQRT(ABS(H130))-0.7 -> 0.06500854481
E131: =RADIANS(H131) -> 0.02967059728 | H131: 1.7 | I131: =SQRT(COS(E131))*COS(300*E131)+SQRT(ABS(H131))-0.7 -> -0.2619943156
E132: =RADIANS(H132) -> 0.03141592654 | H132: 1.8 | I132: =SQRT(COS(E132))*COS(300*E132)+SQRT(ABS(H132))-0.7 -> -0.3581124632
E133: =RADIANS(H133) -> 0.03316125579 | H133: 1.9 | I133: =SQRT(COS(E133))*COS(300*E133)+SQRT(ABS(H133))-0.7 -> -0.1873824324
E134: =RADIANS(H134) -> 0.03490658504 | H134: 2 | I134: =SQRT(COS(E134))*COS(300*E134)+SQRT(ABS(H134))-0.7 -> 0.2143658788
E135: =RADIANS(H135) -> 0.03665191429 | H135: 2.1 | I135: =SQRT(COS(E135))*COS(300*E135)+SQRT(ABS(H135))-0.7 -> 0.7491376746
E136: =RADIANS(H136) -> 0.03839724354 | H136: 2.2 | I136: =SQRT(COS(E136))*COS(300*E136)+SQRT(ABS(H136))-0.7 -> 1.283055393
E137: =RADIANS(H137) -> 0.0401425728 | H137: 2.3 | I137: =SQRT(COS(E137))*COS(300*E137)+SQRT(ABS(H137))-0.7 -> 1.682251585
E138: =RADIANS(H138) -> 0.04188790205 | H138: 2.4 | I138: =SQRT(COS(E138))*COS(300*E138)+SQRT(ABS(H138))-0.7 -> 1.848754657
E139: =RADIANS(H139) -> 0.0436332313 | H139: 2.5 | I139: =SQRT(COS(E139))*COS(300*E139)+SQRT(ABS(H139))-0.7 -> 1.746752004
E140: =RADIANS(H140) -> 0.04537856055 | H140: 2.6 | I140: =SQRT(COS(E140))*COS(300*E140)+SQRT(ABS(H140))-0.7 -> 1.412194126
E141: =RADIANS(H141) -> 0.0471238898 | H141: 2.7 | I141: =SQRT(COS(E141))*COS(300*E141)+SQRT(ABS(H141))-0.7 -> 0.9431676725
E142: =RADIANS(H142) -> 0.04886921906 | H142: 2.8 | I142: =SQRT(COS(E142))*COS(300*E142)+SQRT(ABS(H142))-0.7 -> 0.4736186079
E143: =RADIANS(H143) -> 0.05061454831 | H143: 2.9 | I143: =SQRT(COS(E143))*COS(300*E143)+SQRT(ABS(H143))-0.7 -> 0.1374679451
E144: =RADIANS(H144) -> 0.05235987756 | H144: 3 | I144: =SQRT(COS(E144))*COS(300*E144)+SQRT(ABS(H144))-0.7 -> 0.03273627512
E145: =RADIANS(H145) -> 0.05410520681 | H145: 3.1 | I145: =SQRT(COS(E145))*COS(300*E145)+SQRT(ABS(H145))-0.7 -> 0.1952901547
E146: =RADIANS(H146) -> 0.05585053606 | H146: 3.2 | I146: =SQRT(COS(E146))*COS(300*E146)+SQRT(ABS(H146))-0.7 -> 0.589244343
E147: =RADIANS(H147) -> 0.05759586532 | H147: =H146+0.1 -> 3.3 | I147: =SQRT(COS(E147))*COS(300*E147)+SQRT(ABS(H147))-0.7 -> 1.116590212
E148: =RADIANS(H148) -> 0.05934119457 | H148: =H147+0.1 -> 3.4 | I148: =SQRT(COS(E148))*COS(300*E148)+SQRT(ABS(H148))-0.7 -> 1.643468655
E149: =RADIANS(H149) -> 0.06108652382 | H149: 3.5 | I149: =SQRT(COS(E149))*COS(300*E149)+SQRT(ABS(H149))-0.7 -> 2.036046064
E150: =RADIANS(H150) -> 0.06283185307 | H150: 3.6 | I150: =SQRT(COS(E150))*COS(300*E150)+SQRT(ABS(H150))-0.7 -> 2.196379473
E151: =RADIANS(H151) -> 0.06457718232 | H151: 3.7 | I151: =SQRT(COS(E151))*COS(300*E151)+SQRT(ABS(H151))-0.7 -> 2.088660775
E152: =RADIANS(H152) -> 0.06632251158 | H152: 3.8 | I152: =SQRT(COS(E152))*COS(300*E152)+SQRT(ABS(H152))-0.7 -> 1.748808934
E153: =RADIANS(H153) -> 0.06806784083 | H153: 3.9 | I153: =SQRT(COS(E153))*COS(300*E153)+SQRT(ABS(H153))-0.7 -> 1.274841766
E154: =RADIANS(H154) -> 0.06981317008 | H154: 4 | I154: =SQRT(COS(E154))*COS(300*E154)+SQRT(ABS(H154))-0.7 -> 0.8006093588
E155: =RADIANS(H155) -> 0.07155849933 | H155: 4.1 | I155: =SQRT(COS(E155))*COS(300*E155)+SQRT(ABS(H155))-0.7 -> 0.4599291528
E156: =RADIANS(H156) -> 0.07330382858 | H156: 4.2 | I156: =SQRT(COS(E156))*COS(300*E156)+SQRT(ABS(H156))-0.7 -> 0.3507338173
E157: =RADIANS(H157) -> 0.07504915784 | H157: 4.3 | I157: =SQRT(COS(E157))*COS(300*E157)+SQRT(ABS(H157))-0.7 -> 0.5088384634
E158: =RADIANS(H158) -> 0.07679448709 | H158: 4.4 | I158: =SQRT(COS(E158))*COS(300*E158)+SQRT(ABS(H158))-0.7 -> 0.898355052
E159: =RADIANS(H159) -> 0.07853981634 | H159: 4.5 | I159: =SQRT(COS(E159))*COS(300*E159)+SQRT(ABS(H159))-0.7 -> 1.421320344
E160: =RADIANS(H160) -> 0.08028514559 | H160: 4.6 | I160: =SQRT(COS(E160))*COS(300*E160)+SQRT(ABS(H160))-0.7 -> 1.943955129
E161: =RADIANS(H161) -> 0.08203047484 | H161: 4.7 | I161: =SQRT(COS(E161))*COS(300*E161)+SQRT(ABS(H161))-0.7 -> 2.332516462
E162: =RADIANS(H162) -> 0.0837758041 | H162: 4.8 | I162: =SQRT(COS(E162))*COS(300*E162)+SQRT(ABS(H162))-0.7 -> 2.489135119
E163: =RADIANS(H163) -> 0.08552113335 | H163: 4.9 | I163: =SQRT(COS(E163))*COS(300*E163)+SQRT(ABS(H163))-0.7 -> 2.378035784
E164: =RADIANS(H164) -> 0.0872664626 | H164: 5 | I164: =SQRT(COS(E164))*COS(300*E164)+SQRT(ABS(H164))-0.7 -> 2.035115745
E165: =RADIANS(H165) -> 0.08901179185 | H165: 5.1 | I165: =SQRT(COS(E165))*COS(300*E165)+SQRT(ABS(H165))-0.7 -> 1.558317958
E166: =RADIANS(H166) -> 0.0907571211 | H166: 5.2 | I166: =SQRT(COS(E166))*COS(300*E166)+SQRT(ABS(H166))-0.7 -> 1.081380811
E167: =RADIANS(H167) -> 0.09250245036 | H167: 5.3 | I167: =SQRT(COS(E167))*COS(300*E167)+SQRT(ABS(H167))-0.7 -> 0.7380007258
E168: =RADIANS(H168) -> 0.09424777961 | H168: 5.4 | I168: =SQRT(COS(E168))*COS(300*E168)+SQRT(ABS(H168))-0.7 -> 0.6260114929
E169: =RADIANS(H169) -> 0.09599310886 | H169: 5.5 | I169: =SQRT(COS(E169))*COS(300*E169)+SQRT(ABS(H169))-0.7 -> 0.7811782804
E170: =RADIANS(H170) -> 0.09773843811 | H170: 5.6 | I170: =SQRT(COS(E170))*COS(300*E170)+SQRT(ABS(H170))-0.7 -> 1.16762649
E171: =RADIANS(H171) -> 0.09948376736 | H171: 5.7 | I171: =SQRT(COS(E171))*COS(300*E171)+SQRT(ABS(H171))-0.7 -> 1.687467277
E172: =RADIANS(H172) -> 0.1012290966 | H172: 5.8 | I172: =SQRT(COS(E172))*COS(300*E172)+SQRT(ABS(H172))-0.7 -> 2.207037451
E173: =RADIANS(H173) -> 0.1029744259 | H173: 5.9 | I173: =SQRT(COS(E173))*COS(300*E173)+SQRT(ABS(H173))-0.7 -> 2.592720171
E174: =RADIANS(H174) -> 0.1047197551 | H174: 6 | I174: =SQRT(COS(E174))*COS(300*E174)+SQRT(ABS(H174))-0.7 -> 2.746746929
E175: =RADIANS(H175) -> 0.1064650844 | H175: 6.1 | I175: =SQRT(COS(E175))*COS(300*E175)+SQRT(ABS(H175))-0.7 -> 2.633387988
E176: =RADIANS(H176) -> 0.1082104136 | H176: 6.2 | I176: =SQRT(COS(E176))*COS(300*E176)+SQRT(ABS(H176))-0.7 -> 2.288515516
E177: =RADIANS(H177) -> 0.1099557429 | H177: 6.3 | I177: =SQRT(COS(E177))*COS(300*E177)+SQRT(ABS(H177))-0.7 -> 1.80998008
E178: =RADIANS(H178) -> 0.1117010721 | H178: 6.4 | I178: =SQRT(COS(E178))*COS(300*E178)+SQRT(ABS(H178))-0.7 -> 1.331382583
E179: =RADIANS(H179) -> 0.1134464014 | H179: 6.5 | I179: =SQRT(COS(E179))*COS(300*E179)+SQRT(ABS(H179))-0.7 -> 0.9862723087
E180: =RADIANS(H180) -> 0.1151917306 | H180: =H179+0.1 -> 6.6 | I180: =SQRT(COS(E180))*COS(300*E180)+SQRT(ABS(H180))-0.7 -> 0.8723656412
E181: =RADIANS(H181) -> 0.1169370599 | H181: =H180+0.1 -> 6.7 | I181: =SQRT(COS(E181))*COS(300*E181)+SQRT(ABS(H181))-0.7 -> 1.025372679
E182: =RADIANS(H182) -> 0.1186823891 | H182: 6.8 | I182: =SQRT(COS(E182))*COS(300*E182)+SQRT(ABS(H182))-0.7 -> 1.409442689
E183: =RADIANS(H183) -> 0.1204277184 | H183: 6.9 | I183: =SQRT(COS(E183))*COS(300*E183)+SQRT(ABS(H183))-0.7 -> 1.926785107
E184: =RADIANS(H184) -> 0.1221730476 | H184: 7 | I184: =SQRT(COS(E184))*COS(300*E184)+SQRT(ABS(H184))-0.7 -> 2.443884363
E185: =RADIANS(H185) -> 0.1239183769 | H185: 7.1 | I185: =SQRT(COS(E185))*COS(300*E185)+SQRT(ABS(H185))-0.7 -> 2.827281165
E186: =RADIANS(H186) -> 0.1256637061 | H186: 7.2 | I186: =SQRT(COS(E186))*COS(300*E186)+SQRT(ABS(H186))-0.7 -> 2.979331121
E187: =RADIANS(H187) -> 0.1274090354 | H187: 7.3 | I187: =SQRT(COS(E187))*COS(300*E187)+SQRT(ABS(H187))-0.7 -> 2.86435967
E188: =RADIANS(H188) -> 0.1291543646 | H188: 7.4 | I188: =SQRT(COS(E188))*COS(300*E188)+SQRT(ABS(H188))-0.7 -> 2.518207539
E189: =RADIANS(H189) -> 0.1308996939 | H189: 7.5 | I189: =SQRT(COS(E189))*COS(300*E189)+SQRT(ABS(H189))-0.7 -> 2.038612788
E190: =RADIANS(H190) -> 0.1326450232 | H190: 7.6 | I190: =SQRT(COS(E190))*COS(300*E190)+SQRT(ABS(H190))-0.7 -> 1.55901071
E191: =RADIANS(H191) -> 0.1343903524 | H191: 7.7 | I191: =SQRT(COS(E191))*COS(300*E191)+SQRT(ABS(H191))-0.7 -> 1.212775212
E192: =RADIANS(H192) -> 0.1361356817 | H192: 7.8 | I192: =SQRT(COS(E192))*COS(300*E192)+SQRT(ABS(H192))-0.7 -> 1.097484839
E193: =RADIANS(H193) -> 0.1378810109 | H193: 7.9 | I193: =SQRT(COS(E193))*COS(300*E193)+SQRT(ABS(H193))-0.7 -> 1.248787781
E194: =RADIANS(H194) -> 0.1396263402 | H194: 8 | I194: =SQRT(COS(E194))*COS(300*E194)+SQRT(ABS(H194))-0.7 -> 1.630866056
E195: =RADIANS(H195) -> 0.1413716694 | H195: 8.1 | I195: =SQRT(COS(E195))*COS(300*E195)+SQRT(ABS(H195))-0.7 -> 2.146049894
E196: =RADIANS(H196) -> 0.1431169987 | H196: 8.2 | I196: =SQRT(COS(E196))*COS(300*E196)+SQRT(ABS(H196))-0.7 -> 2.661001704
E197: =RADIANS(H197) -> 0.1448623279 | H197: 8.3 | I197: =SQRT(COS(E197))*COS(300*E197)+SQRT(ABS(H197))-0.7 -> 3.042450057
E198: =RADIANS(H198) -> 0.1466076572 | H198: 8.4 | I198: =SQRT(COS(E198))*COS(300*E198)+SQRT(ABS(H198))-0.7 -> 3.192897053
E199: =RADIANS(H199) -> 0.1483529864 | H199: 8.5 | I199: =SQRT(COS(E199))*COS(300*E199)+SQRT(ABS(H199))-0.7 -> 3.076731947
E200: =RADIANS(H200) -> 0.1500983157 | H200: 8.6 | I200: =SQRT(COS(E200))*COS(300*E200)+SQRT(ABS(H200))-0.7 -> 2.729756809
E201: =RADIANS(H201) -> 0.1518436449 | H201: 8.7 | I201: =SQRT(COS(E201))*COS(300*E201)+SQRT(ABS(H201))-0.7 -> 2.249576241
E202: =RADIANS(H202) -> 0.1535889742 | H202: 8.8 | I202: =SQRT(COS(E202))*COS(300*E202)+SQRT(ABS(H202))-0.7 -> 1.769431012
E203: =RADIANS(H203) -> 0.1553343034 | H203: 8.9 | I203: =SQRT(COS(E203))*COS(300*E203)+SQRT(ABS(H203))-0.7 -> 1.422490693
E204: =RADIANS(H204) -> 0.1570796327 | H204: 9 | I204: =SQRT(COS(E204))*COS(300*E204)+SQRT(ABS(H204))-0.7 -> 1.306174894
E205: =RADIANS(H205) -> 0.1588249619 | H205: 9.1 | I205: =SQRT(COS(E205))*COS(300*E205)+SQRT(ABS(H205))-0.7 -> 1.456062461
E206: =RADIANS(H206) -> 0.1605702912 | H206: 9.2 | I206: =SQRT(COS(E206))*COS(300*E206)+SQRT(ABS(H206))-0.7 -> 1.836376521
E207: =RADIANS(H207) -> 0.1623156204 | H207: 9.3 | I207: =SQRT(COS(E207))*COS(300*E207)+SQRT(ABS(H207))-0.7 -> 2.349590136
E208: =RADIANS(H208) -> 0.1640609497 | H208: 9.4 | I208: =SQRT(COS(E208))*COS(300*E208)+SQRT(ABS(H208))-0.7 -> 2.862573638
E209: =RADIANS(H209) -> 0.1658062789 | H209: 9.5 | I209: =SQRT(COS(E209))*COS(300*E209)+SQRT(ABS(H209))-0.7 -> 3.242273395
E210: =RADIANS(H210) -> 0.1675516082 | H210: 9.6 | I210: =SQRT(COS(E210))*COS(300*E210)+SQRT(ABS(H210))-0.7 -> 3.391360008
... 35 more rows

Sheet גיליון2

Sheet גיליון3
